bitfinex-derivatives/quotes_ETHF0:USTF0_20250404
["timestamp","ask_amount","ask_price","bid_price","bid_amount"]
[1743769968591,2.7977,1787.5,1786.4,3.2078]
[1743769968794,3.2078,1787.2,1786.4,11.88858]
[1743769969002,3.2078,1787.2,1786.4,9.0892]
[1743769969204,1.12772387,1787.1,1786.8,1.12787387]
[1743769969398,0.00838387,1787.1,1786.8,0.00838387]
[1743769969594,5.44338387,1787.1,1786.8,0.00838387]
[1743769970091,5.44338387,1787.1,1786.9,1.11945]
[1743769970286,0.00838387,1787.1,1787.0,1.11939]
[1743769970688,0.56,1788.1,1787.7,1.11891]
[1743769970894,4.32659,1788.0,1787.8,1.11888]
[1743769971193,3.35646,1788.3,1787.6,2.79754]
[1743769971194,5.435,1788.1,1787.6,2.79754]
[1743769971397,3.2078,1788.3,1787.8,3.2078]
[1743769971593,1.11872,1788.1,1787.8,3.2078]
[1743769971900,3.2078,1788.1,1787.9,0.00838387]
[1743769972192,1.11898,1787.7,1787.2,5.6293]
[1743769972396,3.2078,1788.0,1787.3,2.79801]
[1743769972597,3.2078,1788.0,1787.9,1.11883]
[1743769972788,5.4792,1788.1,1788.0,1.11876]
[1743769972994,0.00838387,1788.2,1788.0,1.11875]
[1743769973196,5.48758387,1788.2,1787.7,2.79735]
[1743769973396,6.60624387,1788.2,1788.0,1.11873]
[1743769973598,8.69538387,1788.2,1787.9,0.00838387]
[1743769973794,5.48758387,1788.2,1788.1,1.1187]
[1743769973992,0.00838387,1788.2,1788.1,1.1187]
[1743769974298,0.00838387,1788.2,1788.0,5.6293]
[1743769974299,1.12705387,1788.2,1788.0,5.6293]
[1743769974494,0.00838387,1788.2,1788.1,1.1187]
[1743769975099,1.11872,1788.1,1787.9,0.00838387]
[1743769975405,3.21618387,1788.2,1788.0,1.11873]
[1743769975593,4.33485387,1788.2,1788.0,1.11874]
[1743769976293,3.21618387,1788.2,1787.9,1.12719387]
[1743769976498,1.11876,1788.0,1787.9,0.00838387]
[1743769976696,1.11874,1788.1,1787.9,1.12718387]
[1743769976894,4.32656,1788.0,1787.9,0.00838387]
[1743769977092,1.11904,1787.6,1787.2,11.57727]
[1743769977302,3.2078,1787.6,1787.4,1.11912]
[1743769977496,1.11908,1787.5,1787.4,1.11912]
[1743769977799,1.1191,1787.5,1787.2,5.5713]
[1743769978000,3.2078,1787.4,1786.6,6.0068]
[1743769978196,1.11929,1787.2,1786.6,8.41789]
[1743769978497,5.7875,1787.1,1786.7,0.00838387]
[1743769978688,6.91521387,1787.1,1786.7,0.00838387]
[1743769978889,5.79588387,1787.1,1786.7,0.00838387]
[1743769979093,5.79588387,1787.1,1787.0,1.11939]
[1743769979293,0.00838387,1787.1,1786.7,2.80729387]
[1743769979596,1.1194,1787.0,1786.8,1.11952]
[1743769979797,0.00838387,1787.1,1786.7,3.21618387]
[1743769980004,0.00838387,1787.1,1787.0,1.11939]
[1743769980599,0.00838387,1787.1,1787.0,4.32719]
[1743769980905,0.00838387,1787.1,1787.0,1.11939]
[1743769981195,5.7875,1787.6,1787.5,1.11908]
[1743769981399,1.11893,1787.8,1787.3,2.79797]
[1743769981599,1.11905,1787.6,1787.3,6.1205]
[1743769981800,1.11899,1787.7,1787.5,1.11905]
[1743769982099,1.11886,1787.9,1787.4,2.79779]
[1743769982302,44.1699,1788.0,1787.4,6.1205]
[1743769982502,1.11898,1787.7,1787.4,6.1205]
[1743769982703,0.00838387,1787.8,1787.7,1.11895]
[1743769982900,0.00838387,1787.8,1787.4,6.1205]
[1743769983200,0.00838387,1787.8,1787.5,3.2078]
[1743769983407,0.00838387,1787.8,1787.7,1.11895]
[1743769983597,0.00838387,1787.8,1787.7,4.32675]
[1743769983904,1.67855,1788.4,1788.2,1.11862]
[1743769984097,3.2078,1788.8,1788.5,1.11842]
[1743769984400,3.2078,1788.8,1788.2,5.6482]
[1743769984605,1.11833,1788.7,1788.2,5.6482]
[1743769984833,1.11833,1788.7,1788.5,1.11843]
[1743769985024,3.2078,1788.8,1788.2,11.65258]
[1743769985226,0.00838387,1788.8,1788.7,1.11833]
[1743769985426,1.11799,1789.3,1788.7,1.11833]
[1743769985427,5.7867,1789.3,1789.2,1.11801]
[1743769985625,3.2078,1789.7,1789.2,6.00279]
[1743769985933,3.2078,1789.5,1788.7,11.65182]
[1743769986129,3.2078,1789.5,1788.7,8.856]
[1743769986420,1.11765,1789.8,1789.3,2.79489]
[1743769986622,2.79328,1790.4,1788.7,11.23979]
[1743769986623,3.2078,1791.1,1789.7,3.2078]
[1743769986815,5.7867,1790.9,1790.2,3.2078]
[1743769987118,5.7867,1790.9,1790.3,5.6482]
[1743769987313,5.7867,1790.9,1790.7,1.11704]
[1743769987519,5.7867,1790.9,1790.4,0.00838387]
[1743769988120,1.1172,1790.5,1790.4,0.00838387]
[1743769988321,8.9945,1790.9,1790.5,1.1172]
[1743769988509,8.9945,1790.9,1790.4,1.12562387]
[1743769988712,1.1172,1790.5,1790.4,0.00838387]
[1743769989398,5.6543,1790.6,1790.5,1.1172]
[1743769989599,5.6543,1790.6,1790.4,1.12562387]
[1743769989799,1.11704,1790.8,1790.5,1.11716]
[1743769990006,5.6543,1791.0,1790.4,1.12561387]
[1743769990303,3.767,1791.1,1790.4,1.12561387]
[1743769990304,1.11714,1790.6,1790.4,1.12561387]
[1743769990493,5.6543,1790.8,1790.4,0.00838387]
[1743769990698,1.1172,1790.5,1790.4,0.00838387]
[1743769991001,1.11742,1790.2,1789.6,5.7154]
[1743769991200,5.5951,1790.4,1789.7,2.79426]
[1743769991397,38.4388,1790.8,1790.3,1.11728]
[1743769991698,5.5951,1790.7,1790.2,3.2078]
[1743769991903,5.5951,1790.7,1790.1,5.7154]
[1743769992108,1.1174,1790.2,1789.7,3.2078]
[1743769992298,3.2078,1790.4,1789.7,3.2078]
[1743769992502,3.2078,1790.2,1789.5,3.2078]
[1743769993001,5.5951,1790.1,1789.7,1.11768]
[1743769993305,1.11762,1789.9,1789.6,1.11772]
[1743769993499,1.11765,1789.8,1789.5,5.7154]
[1743769993694,3.2078,1790.0,1789.6,0.00838387]
[1743769993893,5.5951,1790.1,1790.0,1.11751]
[1743769994297,3.21618387,1790.6,1790.0,4.32527]
[1743769994498,0.00838387,1790.6,1790.0,6.00159]
[1743769994706,0.00838387,1790.6,1790.2,3.2078]
[1743769995018,0.00838387,1790.6,1790.5,1.1172]
[1743769995304,9.32,1791.3,1790.4,3.2078]
[1743769995509,3.2078,1791.1,1790.4,1.11724]
[1743769995708,1.11703,1790.8,1790.5,1.11717]
[1743769995904,9.32,1791.0,1790.2,3.2078]
[1743769996202,9.32,1791.0,1790.4,3.2078]
[1743769996507,0.00838387,1790.8,1790.5,3.2078]
[1743769996901,3.21618387,1790.8,1790.4,1.12562387]
[1743769997106,0.00838387,1790.8,1790.4,3.21618387]
[1743769997305,0.00838387,1790.8,1790.6,3.2078]
[1743769997501,0.00838387,1790.8,1790.7,4.32488]
[1743769997814,0.5592,1791.7,1791.3,1.11668]
[1743769998009,3.2078,1791.7,1791.2,3.2078]
[1743769998308,5.7599,1791.6,1790.8,3.2078]
[1743769998498,1.11692,1791.0,1790.8,3.2078]
[1743769998803,3.2078,1791.5,1790.4,3.2078]
[1743769999011,1.11702,1790.8,1790.7,0.00838387]
[1743769999206,5.7599,1790.9,1790.7,0.00838387]
[1743769999207,6.87687,1790.9,1790.7,0.00838387]
[1743769999402,8.2599,1790.9,1790.7,0.00838387]
[1743769999598,6.8769,1790.9,1790.7,0.00838387]
[1743769999797,5.7599,1790.9,1790.7,0.00838387]
[1743770000010,6.87688,1790.9,1790.7,1.12544387]
[1743770000306,1.11702,1790.8,1790.7,3.87e-06]
[1743770000498,2.79301,1790.5,1789.9,5.7229]
[1743770000703,1.11755,1790.0,1789.8,1.11762]
[1743770000898,3.2078,1790.2,1789.7,1.1177]
[1743770001100,3.2078,1790.5,1789.7,2.79426]
[1743770001302,5.8414,1790.7,1790.4,1.11724]
[1743770001500,5.8414,1790.7,1790.6,1.11714]
[1743770001806,0.00838387,1790.8,1790.4,3.2078]
[1743770002104,0.00838387,1790.8,1790.1,3.2078]
[1743770002312,1.11717,1790.6,1790.5,1.1172]
[1743770002609,1.11714,1790.6,1790.4,1.11723]
[1743770002807,3.21618387,1790.8,1790.2,5.7229]
[1743770003007,3.2078,1790.6,1790.2,5.7229]
[1743770003206,0.00838387,1790.8,1790.5,3.2078]
[1743770003402,1.11722,1790.5,1790.3,1.11733]
[1743770003607,2.80097387,1790.8,1790.2,1.11735]
[1743770003806,2.80097387,1790.8,1790.0,9.2752]
[1743770003807,1.11733,1790.3,1790.0,9.2752]
[1743770004007,1.11718,1790.6,1790.4,1.11722]
[1743770004310,1.11731,1790.4,1790.2,1.11735]
[1743770004510,3.2078,1790.6,1790.0,9.2752]
[1743770004709,1.11728,1790.4,1790.0,9.2752]
[1743770004912,1.11718,1790.6,1790.4,1.11726]
[1743770005222,3.21618387,1790.8,1790.7,1.11708]
[1743770005223,0.00838387,1790.8,1790.7,1.11708]
[1743770005406,0.00838387,1790.8,1790.4,6.0009]
[1743770005407,0.00838387,1790.8,1790.5,6.0674]
[1743770005607,3.2078,1790.6,1789.7,3.31955057]
[1743770005810,3.2078,1790.4,1789.7,6.11375057]
[1743770006013,6.00882387,1790.8,1790.0,2.79379]
[1743770006318,3.2078,1790.4,1789.7,2.90596057]
[1743770006514,3.2078,1790.4,1789.7,0.11175057]
[1743770006814,3.2078,1790.4,1790.0,1.11748]
[1743770007014,1.11751,1790.0,1789.7,0.11175057]
[1743770007212,1.11764,1789.8,1789.7,0.11175057]
[1743770007413,5.6879,1789.9,1789.7,0.11175057]
[1743770007613,3.2078,1790.6,1789.7,3.31955057]
[1743770007811,2.88018387,1790.8,1789.8,5.7803]
[1743770007812,1.11748,1790.1,1789.8,5.7803]
[1743770008013,5.6879,1790.5,1789.9,3.2078]
[1743770008216,6.80516,1790.5,1790.0,2.79379]
[1743770008411,5.6879,1790.5,1790.0,8.57409]
[1743770008613,4.8841,1790.7,1790.2,2.79343]
[1743770008812,0.00838387,1790.8,1790.1,3.2078]
[1743770009018,0.00838387,1790.8,1790.3,3.2078]
[1743770009320,2.80096387,1790.8,1790.3,1.11727]
[1743770009514,1.11743,1790.2,1790.0,6.90614387]
[1743770009817,5.9146,1790.7,1790.2,2.79348]
[1743770010119,0.00838387,1790.8,1790.2,3.2078]
[1743770010120,2.80096387,1790.8,1790.2,3.2078]
[1743770010420,0.00838387,1790.8,1790.2,3.2078]
[1743770010716,0.00838387,1790.8,1790.7,1.11708]
[1743770011112,6.0857,1791.8,1790.7,2.5]
[1743770011312,5.9146,1791.7,1791.2,3.2078]
[1743770011617,3.2078,1792.0,1791.4,3.2078]
[1743770011817,1.11665,1791.4,1791.2,1.11673]
[1743770012022,1.11677,1791.2,1791.0,1.11685]
[1743770012216,3.2078,1791.1,1790.3,6.00104]
[1743770012514,1.11699,1790.9,1790.7,1.11705]
[1743770012820,3.2078,1791.1,1790.6,1.11714]
[1743770012821,5.9179,1791.0,1790.6,1.11714]
[1743770013017,7.03483,1791.0,1790.8,1.11699]
[1743770013219,0.00838387,1791.3,1791.2,1.11677]
[1743770013420,9.1257,1791.9,1791.5,1.11656]
[1743770013621,2.79099,1791.8,1791.2,6.1171]
[1743770013826,7.03437,1791.7,1791.5,1.11655]
[1743770014123,1.11652,1791.6,1791.3,3.2078]
[1743770014426,9.1257,1791.7,1791.3,1.11665]
[1743770014627,9.1257,1791.7,1791.3,1.12503387]
[1743770014829,1.11664,1791.4,1791.3,0.00838387]
[1743770015429,3.61664,1791.4,1791.3,3.87e-06]
[1743770015729,9.63654,1791.4,1791.3,3.87e-06]
[1743770015916,45.38194,1791.4,1791.3,3.87e-06]
[1743770016526,1.11711,1790.7,1790.4,1.11724]
[1743770016727,1.11712,1790.7,1790.4,1.11723]
[1743770017024,3.2078,1790.9,1790.3,5.9599]
[1743770017228,9.2277,1791.3,1790.6,3.2078]
[1743770017519,9.2277,1791.3,1790.8,1.11699]
[1743770017726,9.2277,1791.3,1790.8,1.12537387]
[1743770017931,1.11695,1790.9,1790.8,0.00838387]
[1743770018525,6.0199,1791.3,1790.8,0.00838387]
[1743770018716,1.11695,1790.9,1790.8,0.00838387]
[1743770019323,2.5,1790.9,1790.2,3.2078]
[1743770019523,3.2078,1790.7,1790.2,4.32514]
[1743770019729,3.2078,1790.9,1790.2,3.2078]
[1743770020026,5.5744,1791.1,1790.5,3.2078]
[1743770020227,2.79192,1791.2,1790.4,3.2078]
[1743770020422,3.2078,1790.9,1790.4,3.2078]
[1743770020628,1.11717,1790.6,1790.4,1.11725]
[1743770020826,3.2078,1790.9,1790.3,5.8802]
[1743770020827,1.11726,1790.4,1790.3,5.8802]
[1743770021021,1.11733,1790.3,1790.2,3.2078]
[1743770021221,5.9757,1790.8,1790.2,3.21618387]
[1743770021426,1.11733,1790.3,1790.2,0.00838387]
[1743770021822,3.61733,1790.3,1790.2,0.00838387]
[1743770022031,1.11764,1789.8,1789.7,0.11175057]
[1743770022228,1.1175,1790.1,1789.7,0.11175057]
[1743770022429,1.11747,1790.1,1789.7,0.11175057]
[1743770022732,11.97686,1790.3,1789.8,6.0498]
[1743770022930,1.11758,1789.9,1789.8,6.0498]
[1743770023132,11.97685,1790.3,1789.7,0.11175057]
[1743770023327,1.11756,1790.0,1789.9,0.00838387]
[1743770023729,3.61756,1790.0,1789.9,0.00838387]
[1743770023934,9.53786,1790.0,1789.9,4.8e-06]
[1743770024431,1.11764,1789.8,1789.7,5.37e-06]
[1743770024633,4.32544,1789.8,1789.7,5.37e-06]
[1743770024835,6.82544,1789.8,1789.7,5.37e-06]
[1743770025230,1.118,1789.3,1789.1,1.11803]
[1743770025431,3.2078,1789.6,1789.1,1.11803]
[1743770025738,1.12631387,1789.4,1789.2,1.11801]
[1743770025934,0.00838387,1789.4,1789.0,5.72288387]
[1743770026140,1.11798,1789.3,1789.1,1.11806]
[1743770026343,1.11807,1789.2,1789.0,5.72288387]
[1743770026636,1.11808,1789.1,1789.0,0.00838387]
[1743770027030,3.2078,1789.2,1789.0,0.00838387]
[1743770027230,0.00838387,1789.4,1789.0,0.00838387]
[1743770027432,0.00838387,1789.4,1789.2,1.11801]
[1743770027628,0.00838387,1789.4,1789.3,1.11795]
[1743770027836,0.00838387,1789.4,1789.0,3.21618387]
[1743770027837,1.12628387,1789.4,1789.1,5.6033]
[1743770028040,1.12628387,1789.4,1789.2,1.118]
[1743770028339,0.00838387,1789.4,1789.3,1.11795]
[1743770029045,0.00838387,1789.4,1789.1,6.72136]
[1743770029249,1.12631387,1789.4,1789.1,5.6033]
[1743770029447,1.11801,1789.3,1789.1,6.72134]
[1743770029837,1.11801,1789.2,1789.1,5.6033]
[1743770030042,1.11808,1789.1,1789.0,0.00838387]
[1743770031843,3.2078,1789.2,1789.0,0.00838387]
[1743770032045,1.11808,1789.1,1789.0,0.00838387]
[1743770032242,7.20558,1789.1,1789.0,0.00838387]
[1743770033542,0.00838387,1789.4,1789.0,5.71618387]
[1743770033741,0.00838387,1789.4,1789.3,1.11795]
[1743770033941,1.12627387,1789.4,1789.3,1.11795]
[1743770034148,1.11795,1789.3,1789.2,1.11801]
[1743770034346,1.12633387,1789.4,1789.1,6.0299]
[1743770034643,1.12633387,1789.4,1789.1,7.14795]
[1743770034644,0.00838387,1789.4,1789.1,7.14795]
[1743770034849,1.11801,1789.2,1789.1,6.0299]
[1743770035639,1.11801,1789.2,1789.1,7.14798]
[1743770036044,0.00838387,1789.4,1789.3,1.11795]
[1743770036253,1.12631387,1789.4,1789.1,6.0299]
[1743770036444,0.00838387,1789.4,1789.0,0.00838387]
[1743770036646,1.11808,1789.1,1789.0,0.00838387]
[1743770037052,4.32588,1789.1,1789.0,0.00838387]
[1743770037247,1.11808,1789.1,1789.0,0.00838387]
[1743770037548,2.80315387,1789.4,1789.0,0.00838387]
[1743770037549,0.00838387,1789.4,1789.0,0.00838387]
[1743770037852,1.11807,1789.2,1789.0,1.12648387]
[1743770038049,0.00838387,1789.4,1789.3,1.11795]
[1743770038855,0.00838387,1789.4,1789.1,5.7013]
[1743770039050,0.00838387,1789.4,1789.3,1.11795]
[1743770039647,3.2078,1790.1,1790.0,1.11751]
[1743770039948,3.2078,1790.1,1789.7,2.79421]
[1743770040153,3.2078,1790.1,1789.8,6.1139]
[1743770040348,3.2078,1790.1,1789.6,6.00222]
[1743770040349,6.00157,1790.1,1789.2,3.2078]
[1743770040552,1.11771,1789.7,1789.6,1.11772]
[1743770040856,1.1178,1789.6,1789.5,1.11781]
[1743770041058,0.00838387,1789.8,1789.3,2.79482]
[1743770041251,0.00838387,1789.8,1789.7,1.1177]
[1743770041550,3.2078,1791.0,1790.6,1.11714]
[1743770041758,1.11714,1790.6,1790.5,1.11716]
[1743770041944,1.11714,1790.6,1790.4,1.11722]
[1743770042150,1.11712,1790.7,1790.5,1.1172]
[1743770042349,6.3512,1790.9,1790.3,5.5622]
[1743770042552,9.559,1790.9,1790.2,3.2078]
[1743770042753,9.559,1790.9,1790.4,3.21618387]
[1743770042754,1.12543387,1790.8,1790.4,3.21618387]
[1743770042952,0.00838387,1790.8,1790.5,6.67936]
[1743770043151,1.11714,1790.6,1790.5,5.5622]
[1743770043457,23.48764746,1791.0,1790.5,5.5622]
[1743770043458,17.48758746,1791.0,1790.9,1.11695]
[1743770044159,17.48758746,1791.0,1790.5,11.56288]
[1743770044352,1.11706,1790.8,1790.6,1.11711]
[1743770044548,17.48758746,1791.0,1790.5,8.77]
[1743770044753,6.00862387,1790.9,1790.4,0.00838387]
[1743770044952,1.1172,1790.5,1790.4,0.00838387]
[1743770045248,4.325,1790.5,1790.4,0.00838387]
[1743770045452,6.825,1790.5,1790.4,3.87e-06]
[1743770045859,7.3842,1790.5,1790.4,3.87e-06]
[1743770047062,6.825,1790.5,1790.4,3.87e-06]
[1743770047261,7.3842,1790.5,1790.4,3.87e-06]
[1743770047560,6.0803,1790.6,1790.4,3.87e-06]
[1743770047756,0.00838387,1790.9,1790.5,3.2078]
[1743770047958,0.00838387,1790.9,1790.4,3.87e-06]
[1743770047959,1.1172,1790.5,1790.4,3.87e-06]
[1743770048461,4.325,1790.5,1790.4,3.87e-06]
[1743770048761,8.8097,1790.8,1790.4,3.87e-06]
[1743770048964,1.1172,1790.5,1790.4,3.87e-06]
[1743770049162,1.11713,1790.7,1790.4,3.87e-06]
[1743770049364,1.1172,1790.6,1790.4,3.87e-06]
[1743770049555,1.1172,1790.5,1790.4,3.87e-06]
[1743770049756,6.7191,1790.5,1790.4,3.87e-06]
[1743770050058,1.11726,1790.4,1790.3,6.99e-06]
[1743770050263,4.32506,1790.4,1790.3,6.99e-06]
[1743770050464,1.11786,1789.5,1789.3,1.11793]
[1743770050763,1.11786,1789.5,1789.2,5.6978]
[1743770050764,2.79376,1790.1,1789.4,3.2078]
[1743770050959,1.11772,1789.7,1789.5,1.1178]
[1743770051156,0.00838387,1789.9,1789.6,0.00838387]
[1743770051357,1.11772,1789.7,1789.6,0.00838387]
[1743770051558,3.2078,1789.8,1789.6,0.00838387]
[1743770051760,1.1177,1789.7,1789.6,0.00838387]
[1743770052062,7.0682,1789.7,1789.6,3.87e-06]
[1743770052251,10.1274,1789.7,1789.6,3.87e-06]
[1743770052856,7.6274,1789.7,1789.6,3.87e-06]
[1743770053162,5.9505,1789.7,1789.6,3.87e-06]
[1743770053360,7.0682,1789.7,1789.6,3.87e-06]
[1743770053559,10.276,1789.7,1789.6,3.87e-06]
[1743770053761,12.776,1789.7,1789.6,3.87e-06]
[1743770053951,12.776,1789.7,1788.6,3.2078]
[1743770053952,1.11833,1788.7,1788.6,3.2078]
[1743770054159,1.11833,1788.7,1788.4,0.51670131]
[1743770054160,1.1183,1788.8,1788.4,9.1732]
[1743770054359,6.00371,1788.7,1787.6,3.2078]
[1743770054559,6.00371,1788.7,1787.5,40.8]
[1743770054560,2.79661,1788.2,1787.5,40.8]
[1743770054852,5.9471,1788.1,1787.4,14.39335848]
[1743770055061,5.9471,1788.1,1787.5,3.2078]
[1743770055360,0.00838387,1787.9,1787.6,0.00838387]
[1743770055867,1.11846,1788.5,1788.2,1.11859]
[1743770056058,1.1186,1788.3,1788.0,1.11873]
[1743770056258,5.9471,1788.5,1787.8,3.2078]
[1743770056458,6.5071,1788.5,1787.8,3.2078]
[1743770056664,1.11847,1788.5,1787.8,3.2078]
[1743770056860,1.11853,1788.4,1788.1,4.32645]
[1743770057059,0.00838387,1788.3,1788.2,5.6421]
[1743770057760,0.00838387,1788.3,1788.2,9.26074]
[1743770058066,0.00838387,1788.3,1788.2,6.76074]
[1743770058460,0.56,1788.9,1788.7,1.1183]
[1743770058656,9.7546,1789.0,1788.2,8.8499]
[1743770058859,9.1954,1788.8,1788.2,6.76072]
[1743770059059,1.11848,1788.5,1788.2,6.76072]
[1743770059255,1.11848,1788.5,1788.3,1.11857]
[1743770059460,9.1954,1788.8,1788.2,5.6421]
[1743770059660,1.11857,1788.4,1788.2,5.65048387]
[1743770060168,1.11858,1788.3,1788.2,5.65048387]
[1743770060359,1.11858,1788.3,1788.2,0.00838387]
[1743770060853,3.2078,1788.4,1788.2,0.00838387]
[1743770061059,1.11858,1788.3,1788.2,0.00838387]
[1743770061755,8.1505,1788.3,1787.6,3.2078]
[1743770061960,1.11876,1788.1,1787.6,3.2078]
[1743770062263,2.80465387,1788.5,1787.7,8.9567]
[1743770062466,0.00838387,1788.5,1788.4,1.11851]
[1743770062761,0.00838387,1788.5,1788.2,1.11864]
[1743770062964,0.00838387,1788.5,1788.3,0.00838387]
[1743770063160,4.32631,1788.4,1788.3,0.00838387]
[1743770063563,6.01218387,1788.5,1788.3,0.00838387]
[1743770063771,4.32631,1788.4,1788.3,0.00838387]
[1743770063958,6.01218387,1788.5,1788.4,1.11851]
[1743770064158,0.00838387,1788.5,1788.3,1.12692387]
[1743770064358,3.87e-06,1788.5,1788.4,4.32631]
[1743770064554,3.87e-06,1788.5,1788.4,16.81031]
[1743770064759,3.87e-06,1788.5,1788.4,22.60071]
[1743770065556,3.87e-06,1788.5,1788.4,6.90891]
[1743770066463,3.87e-06,1788.5,1788.3,0.00838387]
[1743770066757,3.87e-06,1788.5,1788.4,1.11851]
[1743770066959,3.013,1789.6,1788.5,2.79614]
[1743770067160,3.2078,1789.7,1788.5,2.79614]
[1743770067161,0.5592,1789.7,1789.2,3.2078]
[1743770067361,4.32516,1790.3,1790.1,1.11742]
[1743770067560,3.2078,1790.3,1789.7,3.2078]
[1743770067764,2.79348,1790.2,1789.5,3.2078]
[1743770067959,2.79348,1790.2,1789.2,9.88]
[1743770067960,1.11768,1789.8,1789.4,5.67]
[1743770068165,0.00838387,1790.0,1789.7,0.00838387]
[1743770068367,1.11764,1789.8,1789.7,0.00838387]
[1743770068762,3.61764,1789.8,1789.7,3.87e-06]
[1743770068963,3.61764,1789.8,1788.7,9.831]
[1743770068964,53.6925,1789.8,1788.7,1.11832]
[1743770069163,3.2078,1789.1,1788.7,1.11829]
[1743770069365,2.79504,1789.2,1788.7,1.11829]
[1743770069572,3.2078,1789.1,1788.5,5.67]
[1743770069771,3.2078,1789.1,1788.5,6.7884]
[1743770069772,1.11835,1788.7,1788.5,6.7884]
[1743770069961,1.11828,1788.8,1788.6,1.11837]
[1743770070164,0.00838387,1788.8,1788.6,1.11834]
[1743770070363,0.00838387,1788.8,1788.5,5.67]
[1743770070571,1.11838,1788.7,1788.5,6.78843]
[1743770070869,2.79457,1789.5,1788.7,2.79582]
[1743770071171,35.7892,1789.8,1789.2,3.2078]
[1743770071375,35.7892,1789.8,1789.3,3.2078]
[1743770071670,1.11778,1789.6,1789.4,1.11783]
[1743770071869,5.8297,1789.7,1789.2,5.7184]
[1743770072168,2.79475,1789.4,1788.9,1.11816]
[1743770072369,1.1182,1788.9,1788.8,3.2078]
[1743770072568,8.8467,1789.3,1788.3,3.2078]
[1743770072569,6.00321,1789.0,1788.3,3.2078]
[1743770072771,1.11838,1788.7,1788.5,1.11842]
[1743770072977,11.64226,1788.9,1788.3,8.8034]
[1743770073168,3.2078,1788.6,1788.4,0.00838387]
[1743770073371,6.75735,1788.5,1788.4,0.00838387]
[1743770074171,9.25735,1788.5,1788.4,0.00838387]
[1743770075670,1.11876,1788.0,1787.9,3.2078]
[1743770075877,1.11889,1787.8,1787.7,5.9285]
[1743770076671,1.11906,1787.6,1787.4,1.11912]
[1743770076878,1.11914,1787.4,1787.3,5.9285]
[1743770077077,6.00538,1787.6,1787.3,0.00838387]
[1743770077375,1.11914,1787.4,1787.3,0.00838387]
[1743770077576,6.70354,1787.5,1787.3,1.12755387]
[1743770077775,1.11914,1787.4,1787.3,0.00838387]
[1743770078278,5.5844,1787.5,1787.3,0.00838387]
[1743770078477,6.015,1787.8,1787.4,1.1191]
[1743770078774,1.11903,1787.6,1787.5,1.11906]
[1743770079074,6.015,1787.8,1787.5,3.2078]
[1743770079277,0.00838387,1787.9,1787.7,3.2078]
[1743770079478,0.00838387,1787.9,1787.8,1.11889]
[1743770079670,1.12721387,1787.9,1787.8,1.11889]
[1743770079876,0.00838387,1787.9,1787.5,4.32684]
[1743770080175,6.02338387,1787.9,1787.6,1.11897]
[1743770080370,6.02338387,1787.9,1787.7,3.2078]
[1743770080573,0.00838387,1787.9,1787.8,1.11889]
[1743770080774,0.00838387,1787.9,1787.8,7.22389]
[1743770081077,0.00838387,1787.9,1787.5,3.2078]
[1743770081274,0.00838387,1787.9,1787.8,1.11889]
[1743770081574,0.00838387,1787.9,1787.6,6.105]
[1743770081782,1.11892,1787.8,1787.7,1.11894]
[1743770081979,0.00838387,1787.9,1787.8,1.11889]
[1743770082379,1.11889,1787.8,1787.7,1.1189]
[1743770082582,1.12723387,1787.9,1787.8,1.11889]
[1743770082776,1.1189,1787.8,1787.7,4.32671]
[1743770082976,1.11895,1787.7,1787.6,6.105]
[1743770083282,1.11905,1787.6,1787.5,1.11908]
[1743770083479,1.11908,1787.5,1787.4,6.79259]
[1743770083678,8.6205,1787.8,1787.4,5.6735]
[1743770083879,1.11908,1787.5,1787.4,6.7926]
[1743770084180,1.11908,1787.5,1787.4,5.6735]
[1743770084374,1.11913,1787.5,1787.3,4.33534387]
[1743770084575,1.11914,1787.4,1787.3,0.00838387]
[1743770084772,5.9526,1787.6,1787.3,0.00838387]
[1743770085072,1.11914,1787.4,1787.3,0.00838387]
[1743770085676,5.9526,1787.6,1787.3,0.00838387]
[1743770085887,7.07161,1787.6,1787.5,1.11908]
[1743770086178,0.00838387,1787.9,1787.8,1.11889]
[1743770086381,7.07116,1788.4,1787.9,2.79702]
[1743770086582,7.07116,1788.4,1788.3,1.11858]
[1743770086779,1.11825,1788.9,1788.7,1.11829]
[1743770086985,5.9526,1788.8,1788.3,5.7564]
[1743770087184,11.9562,1788.8,1787.8,6.00502]
[1743770087383,5.9526,1788.8,1787.9,5.7564]
[1743770087580,1.11845,1788.5,1788.4,0.00838387]
[1743770088080,1.11845,1788.5,1788.4,1.12689387]
[1743770088280,0.00838387,1788.7,1788.6,1.11839]
[1743770088483,0.00838387,1788.7,1788.5,1.11844]
[1743770088781,1.11842,1788.6,1788.4,3.21618387]
[1743770088983,0.00838387,1788.7,1788.6,1.11839]
[1743770089180,0.00838387,1788.7,1788.6,4.32619]
[1743770089685,1.11839,1788.6,1788.5,7.15311]
[1743770089885,1.11839,1788.6,1788.5,6.0347]
[1743770090083,0.00838387,1788.7,1788.6,1.11839]
[1743770090286,1.11839,1788.6,1788.5,10.36093]
[1743770090487,1.11839,1788.6,1788.5,6.0347]
[1743770090685,1.11839,1788.6,1788.5,9.2425]
[1743770090889,1.11845,1788.5,1788.4,0.00838387]
[1743770091391,0.00838387,1788.7,1788.6,1.11839]
[1743770091686,0.00838387,1788.7,1788.5,4.3262]
[1743770091877,0.00838387,1788.7,1788.6,1.11839]
[1743770092286,0.00838387,1788.7,1788.6,3.61839]
[1743770093088,9.5218,1789.2,1788.8,2.79565]
[1743770093289,1.11809,1789.1,1789.0,1.11812]
[1743770093595,2.7952,1789.1,1788.6,1.11836]
[1743770093884,2.79551,1788.9,1788.4,0.00838387]
[1743770094085,1.11842,1788.6,1788.4,6.17288387]
[1743770094286,1.11845,1788.5,1788.4,6.17288387]
[1743770094482,5.87978387,1788.8,1788.4,6.17288387]
[1743770094677,1.11845,1788.5,1788.4,6.17288387]
[1743770094881,1.11835,1788.7,1788.4,6.17288387]